bitfinex/quotes_SOLUSD_20240717
["timestamp","ask_amount","ask_price","bid_price","bid_amount"]
[1721200498978,1.55134948,161.17,161.13,14.81]
[1721200499173,1.55134948,161.17,161.08,16.6552]
[1721200499361,1.55134948,161.17,161.12,34.81]
[1721200500556,1.55134948,161.17,161.13,14.81]
[1721200501872,14.81,161.19,161.14,14.81]
[1721200502051,1.55125549,161.18,161.13,14.81]
[1721200502251,1.5512572,161.17,161.13,14.81]
[1721200502662,1.5512572,161.17,161.12,34.81]
[1721200503065,1.5512572,161.17,161.12,20.0]
[1721200503281,16.3612572,161.17,161.12,14.81]
[1721200503469,14.81,161.17,161.12,14.81]
[1721200504061,14.81,161.17,161.09,20.0]
[1721200504253,14.81,161.17,161.12,14.81]
[1721200504658,14.81,161.18,161.12,14.81]
[1721200504978,1.55143166,161.17,161.12,14.81]
[1721200505680,1.55143166,161.2,161.1,85.0]
[1721200505883,1.55143166,161.2,161.13,14.81]
[1721200506175,14.81,161.19,161.13,14.81]
[1721200506479,1.55125966,161.18,161.13,14.81]
[1721200506666,1.55127536,161.17,161.13,14.81]
[1721200507679,1.55127617,161.18,161.13,14.81]
[1721200507882,16.36136421,161.17,161.11,20.0]
[1721200508056,14.81,161.17,161.11,34.81]
[1721200508255,1.5514304,161.2,161.12,14.81]
[1721200508455,14.81,161.18,161.13,14.81]
[1721200508656,1.55129644,161.19,161.15,14.81]
[1721200511058,1.55110383,161.2,161.15,14.81]
[1721200511383,15.6858,161.21,161.16,1.24021356]
[1721200511384,1.55110142,161.21,161.16,1.24021356]
[1721200511617,1.55110142,161.21,161.15,45.0]
[1721200511618,16.36110142,161.21,161.15,45.0]
[1721200511755,16.36110142,161.21,161.15,59.81]
[1721200512858,1.55098664,161.2,161.15,14.81]
[1721200513074,16.36098664,161.2,161.14,14.81]
[1721200513575,16.36098664,161.2,161.1,30.0]
[1721200513576,1.55108358,161.19,161.1,40.0]
[1721200513763,14.81,161.17,161.11,14.81]
[1721200514079,1.55138044,161.16,161.09,15.5374]
[1721200514288,14.81,161.13,161.06,12.22604496]
[1721200514582,1.55169262,161.12,161.08,14.81]
[1721200514753,14.81,161.13,161.08,14.81]
[1721200514959,1.55175087,161.15,161.1,30.0]
[1721200515265,16.36167908,161.14,161.1,30.0]
[1721200516079,1.5516793,161.13,161.09,14.81]
[1721200516403,14.81,161.12,161.07,14.81]
[1721200516617,14.81,161.11,161.06,14.81]
[1721200516809,1.5517976,161.12,161.07,64.81]
[1721200516998,1.55177067,161.13,161.09,14.81]
[1721200517896,16.36177067,161.13,161.08,14.81]
[1721200519900,31.0187,161.14,161.09,14.81]
[1721200520288,1.55167983,161.13,161.09,14.81]
[1721200520481,1.55169882,161.13,161.09,14.81]
[1721200520804,14.81,161.15,161.1,15.15320184]
[1721200521020,14.81,161.15,161.1,16.0513412]
[1721200521302,14.81,161.15,161.11,1.24121848]
[1721200521680,14.81,161.15,161.1,14.81]
[1721200521881,1.5515177,161.14,161.1,14.81]
[1721200522482,1.5515177,161.14,161.07,20.0]
[1721200522681,16.3615177,161.14,161.09,14.81]
[1721200522883,14.81,161.14,161.09,14.81]
[1721200523089,16.36156181,161.13,161.08,89.81]
[1721200523392,14.81,161.13,161.08,44.81]
[1721200523609,14.81,161.13,161.08,14.81]
[1721200524508,1.55171186,161.16,161.08,14.81]
[1721200524694,14.81,161.13,161.08,14.81]
[1721200525392,1.55171186,161.16,161.1,14.81]
[1721200525580,16.1069,161.18,161.11,40.90251118]
[1721200525907,16.1069,161.18,161.13,14.81]
[1721200526123,16.1069,161.18,161.14,1.24055502]
[1721200526637,17.65810747,161.18,161.14,1.24055502]
[1721200526791,16.1069,161.18,161.14,1.24055502]
[1721200526994,17.65811593,161.18,161.14,1.24055502]
[1721200527211,16.1069,161.18,161.14,1.24055502]
[1721200528311,17.65810888,161.18,161.14,1.24055502]
[1721200528484,32.46810888,161.18,161.14,1.24055502]
[1721200530313,1.55123579,161.17,161.13,14.81]
[1721200530517,14.81,161.16,161.06,30.0]
[1721200530690,16.36160093,161.15,161.1,14.81]
[1721200531008,1.55157469,161.17,161.12,14.81]
[1721200531183,16.36157469,161.17,161.12,14.81]
[1721200531383,14.81,161.16,161.11,34.81]
[1721200531698,1.55142198,161.15,161.11,20.0]
[1721200532710,1.55142198,161.15,161.1,14.81]
[1721200533313,1.5514973,161.14,161.1,14.81]
[1721200533815,1.55156246,161.15,161.11,1.20540147]
[1721200534135,1.55156246,161.15,161.11,16.01540147]
[1721200534625,16.36156246,161.15,161.1,14.81]
[1721200534787,16.36151434,161.14,161.07,30.0]
[1721200534991,14.81,161.13,161.07,44.81]
[1721200535195,1.55182817,161.12,161.07,44.81]
[1721200535508,16.36182692,161.13,161.08,14.81]
[1721200535713,1.55182692,161.13,161.08,14.81]
[1721200535909,16.36182692,161.13,161.08,14.81]
[1721200536118,16.36182692,161.13,161.07,14.81]
[1721200536618,16.36182692,161.13,161.08,14.81]
[1721200538211,14.81,161.12,161.04,26.2933]
[1721200538418,16.3618768,161.11,161.05,65.0]
[1721200538713,14.81,161.11,161.06,14.81]
[1721200539293,1.55188402,161.1,161.06,14.81]
[1721200539917,1.55188402,161.1,161.05,65.0]
[1721200540119,16.36188402,161.1,161.05,79.81]
[1721200540491,14.81,161.1,161.05,79.81]
[1721200540911,14.81,161.1,161.05,65.0]
[1721200541107,14.81,161.08,161.03,0.8208803]
[1721200541303,14.81,161.08,161.03,15.6308803]
[1721200541819,1.55218286,161.07,161.03,15.6308803]
[1721200542006,1.55218286,161.07,161.03,0.8208803]
[1721200542211,1.55218286,161.07,161.03,15.6308803]
[1721200542526,14.81,161.08,161.03,0.8208803]
[1721200542725,1.55226982,161.07,161.03,22.05929999]
[1721200542907,16.36226982,161.07,161.03,22.05929999]
[1721200543219,14.81,161.08,161.03,22.05929999]
[1721200543420,1.55227865,161.07,161.03,16.86929999]
[1721200543897,1.55227865,161.07,161.03,2.05929999]
[1721200544097,1.55227865,161.07,161.03,15.6308803]
[1721200544312,14.81,161.06,161.03,0.8208803]
[1721200544695,14.81,161.04,161.03,0.8208803]
[1721200545106,16.36259834,161.04,161.03,0.8208803]
[1721200545301,14.81,161.04,161.03,0.8208803]
[1721200545994,53.23877549,161.04,160.92,10.0]
[1721200546213,14.81,160.96,160.92,6.43548508]
[1721200546522,14.81,160.96,160.88,10.0]
[1721200546523,14.81,160.96,160.91,14.81]
[1721200547021,1.55331268,161.0,160.91,14.81]
[1721200547220,6.212,160.98,160.86,0.8401936]
[1721200547417,14.81,160.92,160.87,14.81]
[1721200547619,14.81,160.92,160.87,13.81]
[1721200547918,1.55357068,160.95,160.89,14.81]
[1721200548120,14.81,160.94,160.89,14.81]
[1721200548323,1.55346709,160.94,160.86,0.8401936]
[1721200548727,1.55367237,160.97,160.86,0.8401936]
[1721200549097,1.55367237,160.97,160.86,1.46369112]
[1721200549430,8.10632385,160.96,160.87,1.24289908]
[1721200549608,1.55377222,160.95,160.87,1.24289908]
[1721200550115,1.55377222,160.95,160.87,11.24289908]
[1721200550721,1.55377222,160.95,160.87,1.24289908]
[1721200550933,1.55377222,160.95,160.86,0.8401936]
[1721200551299,1.55377222,160.95,160.86,20.8401936]
[1721200551722,1.55377222,160.95,160.87,45.0]
[1721200552103,6.2122,160.98,160.87,45.0]
[1721200552303,1.55353433,160.97,160.87,55.0]
[1721200552930,7.76613433,160.97,160.88,20.17]
[1721200553132,1.55353433,160.97,160.89,45.0]
[1721200553319,7.76593433,160.97,160.89,45.0]
[1721200553631,1.55353433,160.97,160.89,45.0]
[1721200554136,22.2893,160.99,160.88,20.0]
[1721200554424,1.72349629,160.98,160.89,1.24279703]
[1721200554632,6.2124,160.97,160.88,45.0]
[1721200554802,0.17,160.98,160.89,20.0]
[1721200555007,1.72362567,160.98,160.89,20.0]
[1721200555506,1.72362567,160.98,160.88,20.0]
[1721200555720,6.2123,160.97,160.89,30.0]
[1721200555919,0.17,160.98,160.89,30.0]
[1721200556229,1.72342566,160.98,160.9,10.0]
[1721200556424,1.72342566,160.98,160.89,30.0]
[1721200556425,7.93532566,160.98,160.89,30.0]
[1721200556731,1.72342566,160.98,160.89,30.0]
[1721200556923,7.93532566,160.98,160.88,20.0]
[1721200557130,6.2123,160.97,160.87,20.0]
[1721200557340,6.2123,160.97,160.89,45.0]
[1721200557504,6.2123,160.97,160.88,45.0]
[1721200557833,6.2123,160.97,160.89,20.0]
[1721200558028,6.3827,160.96,160.89,20.0]
[1721200558326,1.5537042,160.95,160.87,20.0]
[1721200558696,22.1786,160.94,160.86,0.8401936]
[1721200558921,22.1786,160.94,160.73,34.34501079]
[1721200558922,6.2168,160.86,160.75,91.77552774]
[1721200559110,6.2148,160.85,160.75,81.79960827]
[1721200559425,7.77210491,160.84,160.76,0.47937204]
[1721200559816,6.2178,160.83,160.76,0.47937204]
[1721200560024,1.55473153,160.82,160.75,10.0]
[1721200560224,1.5547291,160.84,160.75,10.0]
[1721200560818,7.7723291,160.84,160.75,10.0]
[1721200561220,29.7,160.81,160.73,0.03907343]
[1721200561526,62.50112318,160.83,160.73,0.03907343]
[1721200561527,29.7,160.78,160.73,0.03907343]
[1721200561725,1.55531718,160.77,160.73,0.03907343]
[1721200562026,1.55532574,160.76,160.73,0.03907343]
[1721200562230,1.55533099,160.77,160.73,0.03907343]
[1721200562908,1.5552391,160.76,160.73,0.03907343]
[1721200563111,1.5552574,160.77,160.73,0.03907343]
[1721200563415,1.55525321,160.76,160.73,0.03907343]
[1721200564408,1.55533353,160.77,160.73,0.03907343]
[1721200564838,1.55533353,160.76,160.73,0.03907343]
[1721200565726,1.55528344,160.77,160.73,0.03907343]
[1721200565935,1.55528506,160.76,160.73,0.03907343]
[1721200566230,1.55528379,160.78,160.73,0.03907343]
[1721200567328,7.77488379,160.78,160.73,0.03907343]
[1721200568428,1.55526852,160.79,160.73,0.03907343]
[1721200568633,6.43192073,160.8,160.73,0.03907343]
[1721200568836,6.43192073,160.8,160.73,45.20907343]
[1721200569007,1.55481781,160.79,160.73,45.20907343]
[1721200569523,1.55481781,160.79,160.73,45.03907343]
[1721200570032,29.7,160.75,160.73,0.03907343]
[1721200570204,31.25544119,160.75,160.73,0.03907343]
[1721200573009,29.7,160.75,160.73,0.03907343]
[1721200573423,29.7,160.77,160.73,0.03907343]
[1721200573641,1.55525952,160.76,160.73,0.03907343]
[1721200576660,12.77072073,160.8,160.73,0.03907343]
[1721200576941,1.55499835,160.79,160.73,30.03907343]
[1721200577321,1.55499835,160.79,160.74,0.43233463]
[1721200578223,14.32574849,160.8,160.74,0.43233463]
[1721200578431,14.32574849,160.8,160.74,45.43233463]
[1721200578743,14.32574849,160.8,160.75,0.68551721]
[1721200579417,1.55491189,160.79,160.74,45.0]
[1721200579740,6.43192073,160.8,160.74,45.0]
[1721200579927,6.43192073,160.8,160.75,0.17]
[1721200580717,6.43192073,160.8,160.75,30.17]
[1721200580945,6.43192073,160.8,160.76,45.0]
[1721200581746,6.43192073,160.8,160.76,75.0]
[1721200582131,6.43192073,160.8,160.77,0.45932298]
[1721200582737,6.43192073,160.8,160.76,45.0]
[1721200582917,6.43192073,160.8,160.77,0.45932298]
[1721200583741,6.43192073,160.8,160.75,45.17]
[1721200583941,6.43192073,160.8,160.76,10.17]
[1721200584159,6.43192073,160.8,160.77,45.17]
[1721200584319,6.43192073,160.8,160.78,0.17]
[1721200585543,6.43192073,160.8,160.78,30.17]
[1721200585746,6.43192073,160.8,160.79,45.0]
[1721200586550,6.43192073,160.8,160.78,30.0]
[1721200587624,6.43192073,160.8,160.79,45.0]
[1721200587927,6.43192073,160.8,160.79,0.6377457]
[1721200588149,6.43192073,160.8,160.79,45.6377457]
[1721200588625,6.43192073,160.8,160.79,45.0]
[1721200589948,6.43192073,160.8,160.78,30.0]
[1721200590429,6.43192073,160.8,160.77,0.17]
[1721200590753,6.43192073,160.8,160.76,45.34]
[1721200590928,6.43192073,160.8,160.76,0.34]
[1721200591425,6.43192073,160.8,160.76,30.34]
[1721200591632,6.43192073,160.8,160.77,45.0]
[1721200592347,6.43192073,160.8,160.78,30.0]
[1721200594559,6.43192073,160.8,160.77,45.0]
[1721200598241,6.43192073,160.8,160.78,30.0]
[1721200599262,6.43192073,160.8,160.79,1.24372934]
[1721200599968,6.43192073,160.8,160.78,30.0]
[1721200600143,6.43192073,160.8,160.79,45.0]
[1721200601860,6.43192073,160.8,160.77,14.87]
[1721200602251,6.43192073,160.8,160.78,14.87]
[1721200602559,6.43192073,160.8,160.77,14.87]
[1721200602935,6.43192073,160.8,160.78,14.87]
[1721200603142,6.43192073,160.8,160.76,10.17]
[1721200603143,6.43192073,160.8,160.79,15.04]
[1721200605259,6.5881,160.91,160.8,10.0]
[1721200605434,14.87,160.88,160.82,14.87]
[1721200605840,8.14216865,160.91,160.85,14.87]
[1721200606036,14.87,160.9,160.85,14.87]
[1721200606649,8.14189568,160.91,160.86,1.24119569]
[1721200606650,6.5881,160.91,160.86,1.24119569]
[1721200606835,14.87,160.92,160.86,14.87]
[1721200607039,14.87,160.92,160.87,14.87]
[1721200607347,7.96592928,160.95,160.87,24.87]
[1721200607537,7.96592928,160.95,160.88,14.87]
[1721200607738,6.4121,160.95,160.89,14.87]
[1721200608068,14.87,160.94,160.89,14.87]
[1721200608265,6.4121,160.95,160.86,35.7123]
[1721200608474,6.4121,160.95,160.87,1.41272181]
[1721200608635,6.4121,160.95,160.88,0.17]
[1721200608834,6.4121,160.95,160.88,1.41256732]
[1721200609443,1.55340163,160.98,160.88,1.41256732]
[1721200609674,21.55340163,160.98,160.88,1.41256732]
[1721200609984,27.76530163,160.98,160.88,1.41256732]
[1721200610561,21.55340163,160.98,160.88,1.41256732]
[1721200610769,21.55340163,160.98,160.88,1.0784181]
[1721200612570,21.55340163,160.98,160.88,11.0784181]
[1721200612880,27.76560163,160.98,160.89,0.17]
[1721200613063,21.55340163,160.98,160.89,45.17]
[1721200616349,1.55340163,160.98,160.89,45.17]
[1721200619071,6.4745,160.99,160.9,10.17]
[1721200619269,6.4745,160.99,160.91,45.17]
[1721200619569,6.4745,160.99,160.92,1.08067988]
[1721200620679,6.4745,160.99,160.93,0.17]
[1721200620869,6.4745,160.99,160.93,45.34]
[1721200623478,1.55305999,161.03,160.93,45.34]
[1721200623479,7.75824841,161.03,160.94,10.0]
[1721200623668,6.2055,161.03,160.95,46.41964711]
[1721200623866,6.2055,161.03,160.96,1.07962083]
[1721200624195,6.2055,161.03,160.96,11.07962083]
[1721200624364,6.2055,161.03,160.97,55.34]
[1721200624571,1.55254904,161.06,160.98,11.07942225]
[1721200624758,6.003,161.07,160.99,45.34]
[1721200624952,7.55525403,161.07,160.99,45.34]
[1721200625355,6.003,161.07,160.99,45.34]
[1721200625557,6.003,161.07,161.0,0.3745141]
[1721200626878,6.003,161.07,160.99,45.34]
[1721200627076,7.55520498,161.07,160.99,45.34]
[1721200627376,7.55520498,161.07,160.99,45.0]
[1721200627553,6.2089,161.06,160.99,45.0]
[1721200627759,1.55254238,161.05,160.99,45.0]
[1721200627964,1.55255475,161.05,160.99,45.0]
[1721200629214,1.55250165,161.06,160.99,45.0]
[1721200629702,6.003,161.07,160.99,45.0]
[1721200629887,6.003,161.07,161.0,0.78627519]
[1721200630095,1.55217703,161.09,161.0,16.68437519]
[1721200630389,21.55217703,161.09,161.01,45.0]
[1721200630599,1.55217703,161.09,161.02,0.44621975]
[1721200630800,21.5520984,161.1,161.02,0.44621975]
[1721200630985,21.5520984,161.1,161.01,45.0]
[1721200631184,1.5520984,161.1,161.01,45.0]
[1721200631373,1.5520984,161.1,161.01,46.07855]
[1721200631569,1.5520984,161.1,161.02,1.07855]
[1721200632397,31.2420984,161.1,160.96,26.0661]
[1721200632595,6.2085,161.07,160.96,26.0661]
[1721200632778,7.76130512,161.06,160.96,16.0661]
[1721200633589,1.55250512,161.06,160.96,16.0661]
[1721200633782,21.55250512,161.06,160.96,16.0661]
[1721200634096,1.55250512,161.06,160.96,16.0661]
[1721200634281,21.55250512,161.06,160.96,16.0661]
[1721200634484,21.55250512,161.06,160.97,55.34]
[1721200634888,21.55250512,161.06,160.97,45.34]
[1721200635503,21.55250512,161.06,160.97,45.17]
[1721200635705,27.76140512,161.06,160.97,45.0]
[1721200636612,21.55250512,161.06,160.97,45.0]
[1721200638106,21.55250512,161.06,160.97,55.0]
[1721200638305,21.55250512,161.06,160.98,0.34]
[1721200639284,21.55250512,161.06,160.97,45.0]
[1721200639489,21.9868,161.05,160.96,16.0661]
[1721200639708,31.24273957,161.04,160.92,16.4402]
[1721200639917,31.24273957,161.04,160.93,30.0]
[1721200640121,6.2116,160.99,160.88,16.0442]
[1721200640292,1.55334547,160.98,160.88,16.0442]
[1721200640488,52.61114547,160.98,160.88,16.0442]
[1721200640689,20.0,160.97,160.88,16.0442]
[1721200640887,1.55339766,160.96,160.88,16.0442]
[1721200641087,1.55339764,160.96,160.88,16.0442]
[1721200641301,1.55339764,160.96,160.88,17.12584882]
[1721200641685,1.55339764,160.96,160.89,45.0]
[1721200641879,1.5533409,160.97,160.9,1.08152131]
[1721200642102,16.70913531,160.98,160.9,1.08152131]
[1721200642301,16.70913531,160.98,160.89,45.0]
[1721200643499,1.55328246,160.97,160.9,0.17]
[1721200643804,1.55328246,160.97,160.9,0.34]
[1721200645132,1.55328246,160.97,160.89,45.0]
[1721200646589,12.6232,160.96,160.89,45.0]
[1721200646793,1.55357714,160.95,160.84,16.3851]
[1721200647312,1.55357714,160.95,160.84,26.3851]
[1721200647817,1.55357714,160.95,160.85,1.08204376]
[1721200648026,1.55357714,160.95,160.86,1.25196907]
[1721200648714,1.55357714,160.95,160.84,16.3851]
[1721200648899,21.55357714,160.95,160.84,16.3851]
[1721200649407,6.2138,160.94,160.84,16.3851]
[1721200649590,1.5537936,160.93,160.84,16.3851]
[1721200649793,1.55379455,160.92,160.84,16.3851]
[1721200650495,21.55374323,160.95,160.84,16.3851]
[1721200650906,21.55374323,160.95,160.85,45.34]
[1721200651421,21.55374323,160.95,160.85,55.34]
[1721200652122,7.96390739,160.96,160.87,10.0]
[1721200652297,7.96390739,160.96,160.88,45.67498801]
[1721200652499,6.4104,160.96,160.89,10.0]
[1721200652718,6.4104,160.96,160.9,45.33503938]
[1721200653797,6.4104,160.96,160.9,45.0]
[1721200654116,15.1559,160.98,160.91,10.0]
[1721200654414,7.81436868,161.0,160.92,45.34]
[1721200655119,6.2612,161.0,160.93,10.0]
[1721200655429,6.1853,161.04,160.95,20.0]
[1721200655599,6.1853,161.04,160.97,10.0]
[1721200655800,6.1853,161.04,160.98,45.17]
[1721200655999,6.1853,161.04,160.98,45.0]
[1721200657001,6.1853,161.04,160.99,0.34]
[1721200657199,6.1853,161.04,160.99,0.17]
[1721200657511,6.1853,161.04,160.98,45.0]
[1721200659523,6.1853,161.04,160.99,0.17]
[1721200659904,16.2303,161.06,160.99,0.17]
[1721200660239,7.55844131,161.08,160.99,10.17]
[1721200660398,7.55844131,161.08,161.0,45.0]
[1721200661023,7.55844131,161.08,161.01,1.07873338]
[1721200661206,7.55844131,161.08,161.02,1.07880067]
[1721200661403,6.0061,161.08,161.02,1.07880067]
[1721200661818,6.0061,161.08,161.01,10.17]
[1721200662025,6.0061,161.08,161.02,45.0]
[1721200662318,6.0061,161.08,161.0,45.0]
[1721200663635,6.0061,161.08,161.01,10.34]
[1721200663827,6.0061,161.08,161.02,45.0]
[1721200664014,1.55216609,161.07,161.0,45.0]
[1721200664329,7.5583573,161.08,161.0,45.0]
[1721200664532,1.55220225,161.07,161.0,45.0]
[1721200664895,7.55830225,161.08,161.01,0.17]
[1721200665925,6.0061,161.08,161.01,0.17]
[1721200667725,6.0061,161.08,161.01,0.34]
[1721200669837,15.1359,161.1,161.02,10.0]
[1721200670012,15.1359,161.1,161.03,45.34]
[1721200670207,16.68781675,161.1,161.03,45.17]
[1721200670422,16.68781675,161.1,161.02,45.0]
[1721200671112,15.1359,161.1,161.02,45.0]
[1721200671317,16.687893,161.1,161.02,45.0]
[1721200672213,15.1359,161.1,161.02,45.0]
[1721200672411,16.68790274,161.1,161.02,45.0]
[1721200672612,16.68790274,161.1,161.03,30.0]
[1721200672813,16.68790274,161.1,161.04,45.0]
[1721200673318,15.1359,161.1,161.04,45.0]
[1721200673731,7.80120678,161.12,161.04,75.0]
[1721200674916,14.00770678,161.12,161.04,75.0]
[1721200675540,14.00770678,161.12,161.04,30.0]
[1721200675541,6.2081,161.08,161.04,30.0]
[1721200675743,7.76067407,161.07,161.04,30.0]
[1721200675918,12.3908,161.05,161.04,30.0]
[1721200676442,91.7209,161.05,161.04,13.3334]
[1721200676622,100.6716,161.05,160.94,14.83]
[1721200676815,14.83,160.99,160.95,30.0]
[1721200677012,1.55313992,160.98,160.95,30.0]
[1721200677432,14.83,160.98,160.95,30.0]
[1721200677642,14.83,160.98,160.93,14.83]
[1721200678341,1.55308936,161.0,160.89,22.4088]
[1721200678544,1.55308936,161.0,160.91,30.0]
[1721200678839,1.55308936,161.0,160.92,0.80217352]
[1721200679015,1.55308936,161.0,160.93,0.80212367]
[1721200679531,1.55301552,161.03,160.94,30.0]
[1721200680236,6.2104,161.02,160.95,0.80202399]
[1721200680438,1.55301492,161.01,160.94,30.0]
[1721200680650,6.2122,160.98,160.9,30.0]
[1721200680815,1.55336617,160.97,160.9,30.0]
[1721200681672,7.76566617,160.97,160.9,30.0]
[1721200682451,7.76576617,160.97,160.89,15.8281]
[1721200682633,1.55336617,160.97,160.85,15.7774]
[1721200682938,6.4325,160.95,160.85,15.7774]
[1721200683115,1.55374561,160.94,160.85,15.7774]
[1721200683315,7.76724561,160.94,160.85,15.7774]
[1721200683830,6.2143,160.92,160.85,15.7774]
[1721200684024,1.55381754,160.91,160.85,15.7774]
[1721200684661,1.55381659,160.94,160.85,15.7774]
[1721200684955,1.55381659,160.94,160.81,16.3926]
[1721200685249,1.55381659,160.94,160.83,30.0]
[1721200685429,1.55381659,160.94,160.84,45.0]
[1721200686043,0.17,160.93,160.85,30.0]
[1721200686256,6.2142,160.92,160.85,30.0]
[1721200686554,1.55399245,160.91,160.85,30.0]
[1721200687552,1.55397915,160.9,160.85,30.0]
[1721200687847,1.5539488,160.92,160.85,30.0]
[1721200688048,7.7683488,160.92,160.85,30.0]
[1721200688345,1.5539488,160.92,160.81,25.1961]
[1721200688528,7.7682488,160.92,160.82,75.34]
[1721200688717,7.7682488,160.92,160.83,0.35728737]
[1721200688915,1.5539488,160.92,160.83,0.35728737]
[1721200689528,1.5539488,160.92,160.83,30.0]
[1721200689727,1.5539488,160.92,160.84,45.0]
[1721200690132,7.7681488,160.92,160.84,45.0]
[1721200690338,26.2147,160.91,160.84,45.0]
[1721200690539,1.55402556,160.9,160.84,45.0]
[1721200690747,1.55402519,160.89,160.84,45.0]
[1721200691119,1.55402519,160.89,160.85,0.3750828]
[1721200691320,1.55402519,160.89,160.84,45.0]
[1721200691950,1.55402519,160.89,160.81,15.1961]
[1721200692122,1.55402519,160.89,160.82,75.0]
[1721200692324,1.55405272,160.9,160.82,75.0]
[1721200692624,1.55406678,160.89,160.82,75.0]
[1721200693646,1.55406678,160.89,160.83,1.08320779]
[1721200695549,7.76946678,160.89,160.83,1.08320779]
[1721200695736,7.76997503,160.88,160.83,1.08320779]
[1721200696052,7.77067044,160.87,160.77,268.6861]
[1721200696252,7.77067044,160.87,160.78,30.0]
[1721200697854,6.2167,160.86,160.78,30.0]
[1721200698059,1.55445253,160.85,160.79,45.0]
[1721200698756,1.55442942,160.87,160.79,45.0]
[1721200700238,6.2167,160.86,160.79,45.0]
[1721200700565,1.55446718,160.85,160.79,45.0]
[1721200701232,1.55446718,160.85,160.78,30.0]
[1721200701457,7.77205539,160.84,160.78,30.0]
[1721200701639,1.55465539,160.84,160.78,30.0]
[1721200702235,7.77112153,160.87,160.79,45.52780889]
[1721200702436,20.0,160.86,160.8,0.53345829]
[1721200702638,1.55448638,160.85,160.8,0.53345829]
[1721200703353,1.55448638,160.85,160.78,45.0]
[1721200705761,7.77138638,160.85,160.78,45.0]
[1721200706064,1.55448638,160.85,160.78,45.0]
[1721200706256,6.4836,160.83,160.73,0.03907343]
[1721200706452,1.55475329,160.82,160.74,30.0]
[1721200707355,6.0721,160.86,160.76,10.0]
[1721200707556,1.55440316,160.85,160.77,30.17]
[1721200707757,1.55440316,160.85,160.78,45.0]
[1721200708268,16.41440316,160.85,160.79,14.86]
[1721200708573,16.41440316,160.85,160.8,45.0]
[1721200709070,16.41440316,160.85,160.81,1.084065]
[1721200709370,16.41440316,160.85,160.8,59.86]
[1721200709880,14.86,160.84,160.8,45.0]
[1721200710044,14.86,160.84,160.79,44.86]
[1721200710243,14.86,160.82,160.75,15.3649]
[1721200710545,16.41464291,160.82,160.77,14.86]
[1721200710744,14.86,160.81,160.76,44.86]
[1721200711053,14.86,160.81,160.76,30.0]
[1721200711657,14.86,160.81,160.77,0.76494722]
[1721200712055,14.86,160.81,160.77,46.08480994]
[1721200712250,1.55471233,160.83,160.77,46.08480994]
[1721200712468,1.55471118,160.82,160.77,46.08480994]
[1721200712654,7.77211554,160.84,160.77,45.0]
[1721200712849,7.77211554,160.84,160.78,1.08482155]
[1721200713873,1.55471103,160.83,160.77,45.0]
[1721200714072,21.55471103,160.85,160.77,45.0]
[1721200715272,1.55471103,160.85,160.77,45.0]
[1721200715576,27.77181103,160.85,160.77,45.0]
[1721200716151,6.2173,160.84,160.77,45.0]
[1721200716466,1.55462599,160.83,160.77,45.0]
[1721200718165,1.55458325,160.84,160.77,45.0]
[1721200718675,21.55451426,160.85,160.77,45.0]
[1721200718887,1.55451426,160.85,160.77,45.0]
[1721200719171,1.55451426,160.85,160.78,30.0]
[1721200719361,1.55451426,160.85,160.79,45.0]
[1721200719675,1.55451426,160.85,160.78,30.0]
[1721200719861,1.55451426,160.85,160.78,31.08423282]
[1721200721192,1.55451426,160.85,160.79,45.0]
[1721200721396,1.55451426,160.85,160.8,31.08409359]
[1721200721598,7.77161426,160.85,160.8,30.0]